fUSD/lending_fUSD_20250217
["ID","MTS","AMOUNT","RATE_DAILY","PERIOD"]
[353369534,1739801464695,-1497.41,0.00013863,2]
[353369535,1739801464706,-500.0,0.00013863,2]
[353369536,1739801464715,-500.0,0.00013863,2]
[353369537,1739801464725,-500.0,0.00013863,2]
[353369538,1739801464735,-500.0,0.00013863,2]
[353369539,1739801464745,-500.0,0.00013863,2]
[353369540,1739801464755,-500.0,0.00013863,2]
[353369541,1739801464764,-500.0,0.00013863,2]
[353369542,1739801464774,-1263.18,0.00013863,2]
[353369543,1739801464784,-500.0,0.00013863,2]
[353369544,1739801464794,-500.0,0.00013863,2]
[353369545,1739801464806,-500.0,0.00013863,2]
[353369546,1739801464816,-500.0,0.00013863,2]
[353369547,1739801464825,-1358.71,0.00013863,2]
[353369548,1739801464835,-500.0,0.00013863,2]
[353369549,1739801464845,-509.86168543,0.00013863,2]
[353369550,1739801464855,-895.94,0.00013863,2]
[353369551,1739801464864,-500.0,0.00013863,2]
[353369552,1739801464874,-799.61,0.00013863,2]
[353369553,1739801464884,-736.85,0.00013863,2]
[353369554,1739801464900,-500.0,0.00013863,2]
[353369555,1739801464912,-996.91,0.00013863,2]
[353369556,1739801464923,-500.0,0.00013863,2]
[353369557,1739801464932,-500.0,0.00013863,2]
[353369558,1739801464943,-500.0,0.00013863,2]
[353369559,1739801464952,-500.0,0.00013863,2]
[353369560,1739801464962,-500.0,0.00013863,2]
[353369561,1739801464972,-1352.58,0.00013863,2]
[353369562,1739801464986,-500.0,0.00013863,2]
[353369563,1739801464996,-689.3,0.00013863,2]
[353369564,1739801465005,-500.0,0.00013863,2]
[353369565,1739801465016,-874.71,0.00013863,2]
[353369566,1739801465026,-500.0,0.00013863,2]
[353369567,1739801465035,-500.0,0.00013863,2]
[353369568,1739801465046,-500.0,0.00013863,2]
[353369569,1739801465058,-500.0,0.00013863,2]
[353369570,1739801465067,-500.0,0.00013863,2]
[353369571,1739801465078,-500.0,0.00013863,2]
[353369572,1739801465088,-571.34,0.00013863,2]
[353369573,1739801465098,-577.68,0.00013863,2]
[353369574,1739801465108,-503.11435782,0.00013863,2]
[353369575,1739801465118,-500.0,0.00013863,2]
[353369576,1739801465127,-500.0,0.00013863,2]
[353369577,1739801465139,-539.53318952,0.00013863,2]
[353369578,1739801465150,-513.30301206,0.00013863,2]
[353369579,1739801465160,-500.0,0.00013863,2]
[353369580,1739801465169,-1404.31,0.00013863,2]
[353369581,1739801465179,-500.0,0.00013863,2]
[353369582,1739801465188,-1086.88,0.00013863,2]
[353369583,1739801465198,-500.0,0.00013863,2]
[353369584,1739801465207,-500.0,0.00013863,2]
[353369585,1739801465216,-779.67,0.00013863,2]
[353369586,1739801465226,-500.0,0.00013863,2]
[353369587,1739801465235,-500.0,0.00013863,2]
[353369588,1739801465244,-1370.25,0.00013863,2]
[353369589,1739801465253,-500.0,0.00013863,2]
[353369590,1739801465263,-500.0,0.00013863,2]
[353369591,1739801465272,-500.0,0.00013863,2]
[353369592,1739801465281,-500.0,0.00013863,2]
[353369593,1739801465290,-500.0,0.00013863,2]
[353369594,1739801465303,-899.75,0.00013863,2]
[353369595,1739801465312,-500.0,0.00013863,2]
[353369596,1739801465322,-472.10820175,0.00013863,2]
[353369597,1739801465331,-729.47,0.00013863,2]
[353369598,1739801465340,-500.0,0.00013863,2]
[353369599,1739801465349,-503.23908938,0.00013863,2]
[353369600,1739801465359,-1609.9,0.00013863,2]
[353369601,1739801465368,-500.0,0.00013863,2]
[353369602,1739801465378,-500.0,0.00013863,2]
[353369603,1739801465388,-337.15969562,0.00013863,2]
[353369604,1739801465397,-924.3,0.00013863,2]
[353369605,1739801465406,-500.0,0.00013863,2]
[353369606,1739801465416,-500.0,0.00013863,2]
[353369607,1739801465425,-1589.54,0.00013863,2]
[353369608,1739801465434,-500.0,0.00013863,2]
[353369609,1739801465443,-561.41,0.00013863,2]
[353369610,1739801465452,-500.0,0.00013863,2]
[353369611,1739801465462,-648.32,0.00013863,2]
[353369612,1739801465471,-518.04,0.00013863,2]
[353369613,1739801465481,-1627.78,0.00013863,2]
[353369614,1739801465490,-920.09,0.00013863,2]
[353369615,1739801465499,-500.0,0.00013863,2]
[353369616,1739801465508,-759.19,0.00013863,2]
[353369617,1739801465517,-611.0,0.00013863,2]
[353369618,1739801465526,-500.0,0.00013863,2]
[353369619,1739801465535,-1705.38,0.00013863,2]
[353369620,1739801465546,-500.0,0.00013863,2]
[353369621,1739801465558,-1554.86,0.00013863,2]
[353369622,1739801465567,-500.0,0.00013863,2]
[353369623,1739801465576,-1089.32,0.00013863,2]
[353369624,1739801465586,-1015.89,0.00013863,2]
[353369625,1739801465595,-988.26,0.00013863,2]
[353369626,1739801465604,-500.0,0.00013863,2]
[353369627,1739801465613,-500.0,0.00013863,2]
[353369628,1739801465623,-500.0,0.00013863,2]
[353369629,1739801465632,-500.0,0.00013863,2]
[353369630,1739801465641,-500.0,0.00013863,2]
[353369631,1739801465651,-1661.51,0.00013863,2]
[353369632,1739801465660,-941.79,0.00013863,2]
[353369633,1739801465669,-1078.44,0.00013863,2]
[353369634,1739801465679,-500.0,0.00013863,2]
[353369635,1739801465688,-500.0,0.00013863,2]
[353369636,1739801465697,-500.0,0.00013863,2]
[353369637,1739801465707,-241.07145158,0.00013863,2]
[353369638,1739801465716,-500.0,0.00013863,2]
[353369639,1739801465725,-1384.93,0.00013863,2]
[353369640,1739801465734,-500.0,0.00013863,2]
[353369641,1739801465744,-1471.5,0.00013863,2]
[353369642,1739801465753,-500.0,0.00013863,2]
[353369643,1739801465763,-504.75385302,0.00013863,2]
[353369644,1739801465772,-500.0,0.00013863,2]
[353369645,1739801465781,-500.0,0.00013863,2]
[353369646,1739801465791,-500.0,0.00013863,2]
[353369647,1739801465802,-500.0,0.00013863,2]
[353369648,1739801465811,-500.0,0.00013863,2]
[353369649,1739801465821,-691.12,0.00013863,2]
[353369650,1739801465830,-1651.32,0.00013863,2]
[353369651,1739801465839,-998.65,0.00013863,2]
[353369652,1739801465849,-500.0,0.00013863,2]
[353369653,1739801465858,-1625.12,0.00013863,2]
[353369654,1739801465867,-500.0,0.00013863,2]
[353369655,1739801465876,-500.0,0.00013863,2]
[353369656,1739801465885,-1120.48,0.00013863,2]
[353369657,1739801465899,-500.0,0.00013863,2]
[353369658,1739801465908,-500.0,0.00013863,2]
[353369659,1739801465917,-1145.67,0.00013863,2]
[353369660,1739801465927,-1045.54,0.00013863,2]
[353369661,1739801465941,-500.0,0.00013863,2]
[353369662,1739801465954,-517.50971811,0.00013863,2]
[353369663,1739801465963,-500.0,0.00013863,2]
[353369664,1739801465972,-500.0,0.00013863,2]
[353369665,1739801466153,-653.46,0.00013863,2]
[353369666,1739801466162,-1571.07,0.00013863,2]
[353369667,1739801466171,-1041.19,0.00013863,2]
[353369668,1739801466180,-500.0,0.00013863,2]
[353369669,1739801466189,-1254.62,0.00013863,2]
[353369670,1739801466198,-1917.02,0.00013863,2]
[353369671,1739801466208,-3247.67,0.00013863,2]
[353369672,1739801466217,-500.0,0.00013863,2]
[353369673,1739801466226,-500.0,0.00013863,2]
[353369674,1739801466236,-500.0,0.00013863,2]
[353369675,1739801466246,-1682.9,0.00013863,2]
[353369676,1739801466255,-500.0,0.00013863,2]
[353369677,1739801466265,-500.0,0.00013863,2]
[353369678,1739801466275,-1495.97,0.00013863,2]
[353369679,1739801466284,-3387.61,0.00013863,2]
[353369680,1739801466294,-500.0,0.00013863,2]
[353369681,1739801466308,-500.0,0.00013863,2]
[353369682,1739801466317,-842.09,0.00013863,2]
[353369683,1739801466326,-1165.09,0.00013863,2]
[353369684,1739801466336,-570.11,0.00013863,2]
[353369685,1739801466346,-1714.58,0.00013863,2]
[353369686,1739801466355,-1795.35,0.00013863,2]
[353369687,1739801466364,-500.0,0.00013863,2]
[353369688,1739801466373,-628.27,0.00013863,2]
[353369689,1739801466382,-1544.97,0.00013863,2]
[353369690,1739801466392,-500.0,0.00013863,2]
[353369691,1739801466401,-790.0,0.00013863,2]
[353369692,1739801466411,-1177.99,0.00013863,2]
[353369693,1739801466420,-940.94,0.00013863,2]
[353369694,1739801466429,-489.80722599,0.00013863,2]
[353369695,1739801466439,-613.82,0.00013863,2]
[353369696,1739801466448,-564.31,0.00013863,2]
[353369697,1739801466457,-2317.59,0.00013863,2]
[353369698,1739801466466,-500.0,0.00013863,2]
[353369699,1739801466475,-1517.67,0.00013863,2]
[353369700,1739801466485,-1922.5,0.00013863,2]
[353369701,1739801466495,-500.0,0.00013863,2]
[353369702,1739801466504,-500.0,0.00013863,2]
[353369703,1739801466513,-1385.84,0.00013863,2]
[353369704,1739801466522,-546.98,0.00013863,2]
[353369705,1739801466532,-531.03,0.00013863,2]
[353369706,1739801466542,-1618.7,0.00013863,2]
[353369707,1739801466554,-500.0,0.00013863,2]
[353369708,1739801466564,-500.0,0.00013863,2]
[353369709,1739801466573,-1661.49,0.00013863,2]
[353369710,1739801466583,-1003.49,0.00013863,2]
[353369711,1739801466592,-3314.57,0.00013863,2]
[353369712,1739801466601,-724.51,0.00013863,2]
[353369713,1739801466611,-500.0,0.00013863,2]
[353369714,1739801466621,-2160.75,0.00013863,2]
[353369715,1739801466630,-1676.7,0.00013863,2]
[353369716,1739801466640,-884.56,0.00013863,2]
[353369717,1739801466650,-2179.93,0.00013863,2]
[353369718,1739801466660,-500.0,0.00013863,2]
[353369719,1739801466671,-500.0,0.00013863,2]
[353369720,1739801466680,-500.0,0.00013863,2]
[353369721,1739801466689,-2493.84,0.00013863,2]
[353369722,1739801466700,-660.98,0.00013863,2]
[353369723,1739801466709,-1692.41,0.00013863,2]
[353369724,1739801466719,-478.0955886,0.00013863,2]
[353369725,1739801466728,-500.0,0.00013863,2]
[353369726,1739801466738,-500.0,0.00013863,2]
[353369727,1739801466748,-500.0,0.00013863,2]
[353369728,1739801466758,-805.83,0.00013863,2]
[353369729,1739801466768,-500.0,0.00013863,2]
[353369730,1739801466778,-1046.36,0.00013863,2]
[353369731,1739801466788,-500.0,0.00013863,2]
[353369732,1739801466801,-500.0,0.00013863,2]
[353369733,1739801466811,-2179.25,0.00013863,2]
[353369734,1739801466820,-784.27,0.00013863,2]
[353369735,1739801466831,-500.0,0.00013863,2]
[353369736,1739801466840,-1091.69,0.00013863,2]
[353369737,1739801466851,-500.0,0.00013863,2]
[353369738,1739801466861,-500.0,0.00013863,2]
[353369739,1739801466870,-500.0,0.00013863,2]
[353369740,1739801466880,-500.0,0.00013863,2]
[353369741,1739801466890,-544.98,0.00013863,2]
[353369742,1739801466900,-602.77,0.00013863,2]
[353369743,1739801466914,-1829.18,0.00013863,2]
[353369744,1739801466924,-1196.54,0.00013863,2]
[353369745,1739801466935,-500.0,0.00013863,2]
[353369746,1739801466945,-1986.17,0.00013863,2]
[353369747,1739801466955,-500.0,0.00013863,2]
[353369748,1739801466965,-2285.63,0.00013863,2]
[353369749,1739801466975,-2436.71,0.00013863,2]
[353369750,1739801466988,-500.0,0.00013863,2]
[353369751,1739801466999,-500.0,0.00013863,2]
[353369752,1739801467009,-725.18,0.00013863,2]
[353369753,1739801467018,-1529.57,0.00013863,2]
[353369754,1739801467028,-500.0,0.00013863,2]
[353369755,1739801467038,-2059.28,0.00013863,2]
[353369756,1739801467050,-738.76,0.00013863,2]
[353369757,1739801467060,-2080.47,0.00013863,2]
[353369758,1739801467070,-500.0,0.00013863,2]
[353369759,1739801467079,-3621.76,0.00013863,2]
[353369760,1739801467089,-500.0,0.00013863,2]
[353369761,1739801467098,-1554.87,0.00013863,2]
[353369762,1739801467108,-500.0,0.00013863,2]
[353369763,1739801467118,-475.92718159,0.00013863,2]
[353369764,1739801467139,-538.32,0.00013863,2]
[353369765,1739801467149,-500.0,0.00013863,2]
[353369766,1739801467159,-3088.56,0.00013863,2]
[353369767,1739801467168,-994.95,0.00013863,2]
[353369768,1739801467178,-2511.48,0.00013863,2]
[353369769,1739801467187,-500.0,0.00013863,2]
[353369770,1739801467197,-500.0,0.00013863,2]
[353369771,1739801467207,-1792.75,0.00013863,2]
[353369772,1739801467216,-500.0,0.00013863,2]
[353369773,1739801467226,-2492.77,0.00013863,2]
[353369774,1739801467235,-1922.39,0.00013863,2]
[353369775,1739801467245,-716.09,0.00013863,2]
[353369776,1739801467255,-500.0,0.00013863,2]
[353369777,1739801467266,-2447.91,0.00013863,2]
[353369778,1739801467276,-1811.82,0.00013863,2]
[353369779,1739801467287,-500.0,0.00013863,2]
[353369780,1739801467297,-1621.19,0.00013863,2]
[353369781,1739801467309,-2234.88,0.00013863,2]
[353369782,1739801467319,-558.06,0.00013863,2]
[353369783,1739801467328,-500.77,0.00013863,2]
[353369784,1739801467339,-2154.46,0.00013863,2]
[353369785,1739801467348,-714.38,0.00013863,2]
[353369786,1739801467358,-3801.26,0.00013863,2]
[353369787,1739801467368,-2866.82,0.00013863,2]
[353369788,1739801467378,-500.0,0.00013863,2]
[353369789,1739801467387,-542.39,0.00013863,2]
[353369790,1739801467396,-4526.39,0.00013863,2]
[353369791,1739801467406,-1995.28,0.00013863,2]
[353369792,1739801467415,-2877.66,0.00013863,2]
[353369793,1739801467425,-1428.61,0.00013863,2]
[353369794,1739801467434,-1200.0,0.00013863,2]
[353369795,1739801467444,-2559.61,0.00013863,2]
[353369796,1739801467454,-3065.09,0.00013863,2]
[353369797,1739801467464,-7282.2,0.00013863,2]
[353369798,1739801467474,-500.0,0.00013863,2]
[353369799,1739801467485,-1230.8,0.00013863,2]
[353369800,1739801467495,-500.0,0.00013863,2]
[353369801,1739801467504,-1753.24,0.00013863,2]
[353369802,1739801467515,-2564.01,0.00013863,2]
[353369803,1739801467525,-2402.32,0.00013863,2]
[353369804,1739801467534,-2640.05,0.00013863,2]
[353369805,1739801467545,-858.88,0.00013863,2]
[353369806,1739801467556,-2789.65,0.00013863,2]
[353369807,1739801467567,-1078.97,0.00013863,2]
[353369808,1739801467576,-500.0,0.00013863,2]
[353369809,1739801467586,-500.0,0.00013863,2]
[353369810,1739801467595,-9600.35,0.00013863,2]
[353369811,1739801467604,-500.0,0.00013863,2]
[353369812,1739801467614,-1718.98,0.00013863,2]
[353369813,1739801467624,-3198.48,0.00013863,2]
[353369814,1739801467633,-3079.3,0.00013863,2]
[353369815,1739801467642,-2892.99,0.00013863,2]
[353369816,1739801467652,-1447.04,0.00013863,2]
[353369817,1739801467662,-2486.67,0.00013863,2]
[353369818,1739801467672,-500.0,0.00013863,2]
[353369819,1739801467681,-1855.18,0.00013863,2]
[353369820,1739801467691,-500.0,0.00013863,2]
[353369821,1739801467700,-1637.22,0.00013863,2]
[353369822,1739801467710,-500.0,0.00013863,2]
[353369823,1739801467720,-500.0,0.00013863,2]
[353369824,1739801467730,-7110.24,0.00013863,2]
[353369825,1739801467741,-500.0,0.00013863,2]
[353369826,1739801467751,-1201.92,0.00013863,2]
[353369827,1739801467764,-693.87,0.00013863,2]
[353369828,1739801467775,-3365.03,0.00013863,2]
[353369829,1739801467786,-2154.73,0.00013863,2]
[353369830,1739801467796,-618.8,0.00013863,2]
[353369831,1739801467808,-500.0,0.00013863,2]
[353369832,1739801467819,-2320.84,0.00013863,2]
[353369833,1739801467828,-500.0,0.00013863,2]
[353369834,1739801467839,-500.0,0.00013863,2]
[353369835,1739801467849,-3780.63,0.00013863,2]
[353369836,1739801467859,-500.0,0.00013863,2]
[353369837,1739801467868,-3137.25,0.00013863,2]
[353369838,1739801467878,-2557.5,0.00013863,2]
[353369839,1739801467888,-500.0,0.00013863,2]
[353369840,1739801467898,-677.96,0.00013863,2]
[353369841,1739801467911,-895.61,0.00013863,2]
[353369842,1739801467921,-1059.73,0.00013863,2]
[353369843,1739801467932,-500.0,0.00013863,2]
[353369844,1739801467943,-1771.85,0.00013863,2]
[353369845,1739801467953,-1468.5,0.00013863,2]
[353369846,1739801467963,-749.05,0.00013863,2]
[353369847,1739801467973,-500.0,0.00013863,2]
[353369848,1739801467985,-664.12,0.00013863,2]
[353369849,1739801467996,-500.0,0.00013863,2]
[353369850,1739801468006,-1520.33,0.00013863,2]
[353369851,1739801468016,-3852.61,0.00013863,2]
[353369852,1739801468026,-2769.08,0.00013863,2]
[353369853,1739801468037,-500.0,0.00013863,2]
[353369854,1739801468046,-783.84,0.00013863,2]
[353369855,1739801468060,-578.59,0.00013863,2]
[353369856,1739801468071,-2952.47,0.00013863,2]
[353369857,1739801468081,-500.0,0.00013863,2]
[353369858,1739801468090,-500.0,0.00013863,2]
[353369859,1739801468101,-500.0,0.00013863,2]
[353369860,1739801468111,-2064.67,0.00013863,2]
[353369861,1739801468120,-2439.69,0.00013863,2]
[353369862,1739801468130,-830.43,0.00013863,2]
[353369863,1739801468140,-2585.95,0.00013863,2]
[353369864,1739801468150,-500.0,0.00013863,2]
[353369865,1739801468160,-1538.55,0.00013863,2]
[353369866,1739801468170,-1229.24,0.00013863,2]
[353369867,1739801468180,-796.95,0.00013863,2]
[353369868,1739801468189,-571.93,0.00013863,2]
[353369869,1739801468200,-3960.62,0.00013863,2]
[353369870,1739801468209,-3733.58,0.00013863,2]
[353369871,1739801468218,-500.0,0.00013863,2]
[353369872,1739801468228,-1102.81,0.00013863,2]
[353369873,1739801468238,-2136.58,0.00013863,2]
[353369874,1739801468248,-1657.46,0.00013863,2]
[353369875,1739801468257,-2012.57,0.00013863,2]
[353369876,1739801468268,-500.0,0.00013863,2]
[353369877,1739801468278,-2000.56,0.00013863,2]
[353369878,1739801468287,-1032.25,0.00013863,2]
[353369879,1739801468296,-2463.4,0.00013863,2]
[353369880,1739801468309,-500.0,0.00013863,2]
[353369881,1739801468318,-2514.53,0.00013863,2]
[353369882,1739801468328,-597.23,0.00013863,2]
[353369883,1739801468337,-500.0,0.00013863,2]
[353369884,1739801468346,-2283.35,0.00013863,2]
[353369885,1739801468355,-500.0,0.00013863,2]
[353369886,1739801468365,-1150.36,0.00013863,2]
[353369887,1739801468375,-500.0,0.00013863,2]
[353369888,1739801468384,-685.11,0.00013863,2]
[353369889,1739801468394,-2343.68,0.00013863,2]
[353369890,1739801468403,-715.77,0.00013863,2]
[353369891,1739801468413,-1619.98,0.00013863,2]
[353369892,1739801468422,-1465.32,0.00013863,2]
[353369893,1739801468431,-500.0,0.00013863,2]
[353369894,1739801468441,-2824.39,0.00013863,2]
[353369895,1739801468450,-548.48,0.00013863,2]
[353369896,1739801468460,-706.69,0.00013863,2]
[353369897,1739801468471,-2612.64,0.00013863,2]
[353369898,1739801468480,-4616.83,0.00013863,2]
[353369899,1739801468489,-1806.32,0.00013863,2]
[353369900,1739801468499,-2864.85,0.00013863,2]
[353369901,1739801468509,-1552.59,0.00013863,2]
[353369902,1739801468518,-924.33,0.00013863,2]
[353369903,1739801468528,-1055.4,0.00013863,2]
[353369904,1739801468537,-500.0,0.00013863,2]
[353369905,1739801468547,-500.0,0.00013863,2]
[353369906,1739801468559,-1904.72,0.00013863,2]
[353369907,1739801468568,-2048.85,0.00013863,2]
[353369908,1739801468578,-500.0,0.00013863,2]
[353369909,1739801468588,-1646.06,0.00013863,2]
[353369910,1739801468597,-1796.67,0.00013863,2]
[353369911,1739801468606,-500.0,0.00013863,2]
[353369912,1739801468615,-500.0,0.00013863,2]
[353369913,1739801468625,-1864.22,0.00013863,2]
[353369914,1739801468635,-500.0,0.00013863,2]
[353369915,1739801468644,-500.0,0.00013863,2]
[353369916,1739801468654,-2192.41,0.00013863,2]
[353369917,1739801468664,-1685.47,0.00013863,2]
[353369918,1739801468674,-1715.52,0.00013863,2]
[353369919,1739801468683,-500.0,0.00013863,2]
[353369920,1739801468693,-2722.1,0.00013863,2]
[353369921,1739801468702,-1921.64,0.00013863,2]
[353369922,1739801468711,-500.0,0.00013863,2]
[353369923,1739801468721,-1502.25,0.00013863,2]
[353369924,1739801468730,-1453.46,0.00013863,2]
[353369925,1739801468740,-2363.94,0.00013863,2]
[353369926,1739801468750,-500.0,0.00013863,2]
[353369927,1739801468760,-500.0,0.00013863,2]
[353369928,1739801468770,-700.0,0.0001387,2]
[353369929,1739801468779,-700.0,0.0001387,2]
[353369930,1739801468788,-700.0,0.0001387,2]
[353369931,1739801468798,-150.0,0.00013889,2]
[353369932,1739801468809,-500.0,0.00013894,2]
[353369933,1739801468818,-500.0,0.00013894,2]
[353369934,1739801468827,-500.0,0.00013894,2]
[353369935,1739801468837,-320.1458484,0.00013895,2]
[353369936,1739801468847,-2000.0,0.000139,2]
[353369937,1739801468857,-2000.0,0.000139,2]
[353369938,1739801468866,-2000.0,0.000139,2]
[353369939,1739801468876,-2019.3394,0.000139,2]
[353369940,1739801468886,-2000.0,0.000139,2]
[353369941,1739801468899,-2000.0,0.000139,2]
[353369942,1739801468909,-2000.0,0.000139,2]
[353369943,1739801468919,-2000.0,0.000139,2]
[353369944,1739801468928,-2000.0,0.000139,2]
[353369945,1739801468938,-2000.0,0.000139,2]
[353369946,1739801468948,-200.0,0.000139,5]
[353369947,1739801468957,-500.0,0.00013916,2]
[353369948,1739801468967,-150.0,0.00013917,2]
[353369949,1739801468976,-500.0,0.00013944,2]
[353369950,1739801468990,-500.0,0.00013944,2]
[353369951,1739801468999,-500.0,0.00013944,2]
[353369952,1739801469009,-500.0,0.00013944,2]
[353369953,1739801469019,-555.68,0.00013944,2]
[353369954,1739801469028,-532.19,0.00013944,2]
[353369955,1739801469038,-532.19,0.00013944,2]
[353369956,1739801469047,-532.19,0.00013944,2]
[353369957,1739801469059,-1079.01,0.00013944,2]
[353369958,1739801469068,-1079.01,0.00013944,2]
[353369959,1739801469078,-916.85,0.00013944,2]
[353369960,1739801469087,-916.85,0.00013944,2]
[353369961,1739801469097,-916.85,0.00013944,2]
[353369962,1739801469106,-150.0,0.00013944,2]
[353369963,1739801469115,-933.48,0.00013945,2]
[353369964,1739801469124,-500.0,0.00013945,2]
[353369965,1739801469133,-792.13,0.00013945,2]
[353369966,1739801469142,-179.15538321,0.00013945,2]
[353369967,1739801469152,-500.0,0.00013945,2]
[353369968,1739801469161,-500.0,0.00013945,2]
[353369969,1739801469170,-500.0,0.00013945,2]
[353369970,1739801469179,-500.0,0.00013945,2]
[353369971,1739801469189,-500.0,0.00013945,2]
[353369972,1739801469198,-500.0,0.00013945,2]
[353369973,1739801469206,-500.0,0.00013945,2]
[353369974,1739801469377,-526.43,0.00013945,2]
[353369975,1739801469388,-669.46,0.00013945,2]
[353369976,1739801469397,-768.73,0.00013945,2]
[353369977,1739801469406,-500.0,0.00013945,2]
[353369978,1739801469415,-500.0,0.00013945,2]
[353369979,1739801469424,-500.0,0.00013945,2]
[353369980,1739801469433,-500.0,0.00013945,2]
[353369981,1739801469443,-500.0,0.00013945,2]
[353369982,1739801469452,-500.0,0.00013945,2]
[353369983,1739801469461,-856.36,0.00013945,2]
[353369984,1739801469471,-500.0,0.00013945,2]
[353369985,1739801469480,-500.0,0.00013945,2]
[353369986,1739801469489,-500.0,0.00013945,2]
[353369987,1739801469498,-500.0,0.00013945,2]
[353369988,1739801469510,-500.0,0.00013945,2]
[353369989,1739801469519,-500.0,0.00013945,2]
[353369990,1739801469528,-500.0,0.00013945,2]
[353369991,1739801469537,-500.0,0.00013945,2]
[353369992,1739801469547,-500.0,0.00013945,2]
[353369993,1739801469558,-500.0,0.00013945,2]
[353369994,1739801469567,-500.0,0.00013945,2]
[353369995,1739801469576,-500.0,0.00013945,2]
[353369996,1739801469586,-500.0,0.00013945,2]
[353369997,1739801469595,-500.0,0.00013945,2]
[353369998,1739801469605,-500.0,0.00013945,2]
[353369999,1739801469614,-427.31791879,0.00013945,2]
[353370000,1739801469623,-500.0,0.00013945,2]
[353370001,1739801469633,-500.0,0.00013945,2]
[353370002,1739801469642,-500.0,0.00013945,2]
[353370003,1739801469652,-500.0,0.00013945,2]
[353370004,1739801469661,-500.0,0.00013945,2]
[353370005,1739801469670,-500.0,0.00013945,2]
[353370006,1739801469680,-500.0,0.00013945,2]
[353370007,1739801469690,-500.0,0.00013945,2]
[353370008,1739801469699,-500.0,0.00013945,2]
[353370009,1739801469709,-235.93808333,0.00013945,2]
[353370010,1739801469718,-500.0,0.00013945,2]
[353370011,1739801469729,-563.74,0.00013945,2]
[353370012,1739801469738,-183.80645641,0.00013945,2]
[353370013,1739801469748,-827.97,0.00013945,2]
[353370014,1739801469757,-500.0,0.00013945,2]
[353370015,1739801469767,-152.852518,0.00013945,2]
[353370016,1739801469776,-500.0,0.00013945,2]
[353370017,1739801469786,-1379.489784,0.00013945,2]
[353370018,1739801469795,-1283.11,0.00013945,2]
[353370019,1739801469806,-500.0,0.00013945,2]
[353370020,1739801469815,-500.0,0.00013945,2]
[353370021,1739801469824,-500.0,0.00013945,2]
[353370022,1739801469834,-1042.31,0.00013945,2]
[353370023,1739801469843,-1707.29,0.00013945,2]
[353370024,1739801469853,-956.21,0.00013945,2]
[353370025,1739801469862,-500.0,0.00013945,2]
[353370026,1739801469871,-1297.73,0.00013945,2]
[353370027,1739801469881,-1805.83,0.00013945,2]
[353370028,1739801469890,-1404.260133,0.00013945,2]
[353370029,1739801469900,-500.0,0.00013945,2]
[353370030,1739801469916,-500.0,0.00013945,2]
[353370031,1739801469926,-500.0,0.00013945,2]
[353370032,1739801469934,-500.0,0.00013945,2]
[353370033,1739801469943,-500.0,0.00013945,2]